Workbook

Sheet Instructions
A1: State of New Mexico ARCHITECT RATE SCHEDULE CALCULATION SHEET NOTES
A2: THIS FILE MAY BE USED FOR SINGLE OR MULTI-PHASED DESIGN CALCULATIONS
A3: MAR = Maximum Allowable Rate
A4: NMGRT - New Mexico Gross Receipts Tax
A5: MACC = Maximum Allowable Construction Cost
A6: Note: The NM Architectural Rate Schedule only applies to MACC values between $150k and $10M. This file provides calculations with MACC values between $100k to $30M. When MACC values go outside the published range, the header will change to clarify that the calculations are BASED on the NM Rate Schedule.
A7: In PHASE ONE tab:
A8: 1 | B8: Enter the Project Name and the Location in cells B3 and B4
A9: 2 | B9: Enter the MACC value in cell C6
A10: 3 | B10: Enter the Building Type in cell C7 (A, B, C, or D following guideline notes starting in Row 21)
A11: 4 | B11: Enter the applicable A&E office location NMGRT value in cell A10
A12: 5 | B12: In cells A12 through B18, enter the applicable project-specific efforts and percentages.
A13: In PHASE TWO tab:
B14: Project Name, Location, MACC, and Building Type must be completed in the Phase One tab
A15: 6 | B15: Enter the applicable A&E office location NMGRT value in cell A10
A16: 7 | B16: In cells A13 through B18, enter the applicable project-specific phases and percentages.
B17: If necessary, use the RESET FORMULAS macro to erase entries and start over for this tab only.
A18: In PHASE THREE tab:
B19: Project Name, Location, MACC, and Building Type must be completed in the Phase One tab
A20: 8 | B20: Enter the applicable A&E office location NMGRT value in cell A10
A21: 9 | B21: In cells A14 through B18, enter the applicable project-specific phases and percentages.
B22: If necessary, use the RESET FORMULAS macro to erase entries and start over for this tab only.
A23: Printing:
B24: Print ranges are pre-set for the Phase 1, 2, & 3 tabs

Sheet Phase 1
A1: =IF(OR(C6=0,C6<100000),"State of New Mexico ARCHITECT RATE SCHEDULE CALCULATION SHEET",IF(OR(C6<150000,C6>10000000),"Based on State of NM ARCHITECT RATE SCHEDULE CALCULATION SHEET","State of New Mexico ARCHITECT RATE SCHEDULE CALCULATION SHEET")) -> State of New Mexico ARCHITECT RATE SCHEDULE CALCULATION SHEET
A2: 1.5.18 NMAC | C2: Created 6/12/2017
A3: Project:
A4: Location:
A5: Date: | B5: =TODAY() -> 2017-06-12
A6: Maximum Allowable Construction Cost (MACC) = | C6: 0 | F6: =IF(C6<100000,"MACC RANGE MUST BE BETWEEN $100K AND $30M",IF(C6>30000000,"MACC RANGE MUST BE BETWEEN $100K AND $30M"," ")) -> MACC RANGE MUST BE BETWEEN $100K AND $30M
A7: Building Type Group (A, B, C, D) = | C7: Select | D7: =IF(C7=" ",0,IF(C7="A",2,IF(C7="b",3,IF(C7="c",4,IF(C7="d",5,0))))) -> 0 | E7: Select
A8: Basic Services Fee as a Percentage of MACC = | C8: =IF(C7="Select",0,VLOOKUP(C6,TABLE!A1:E809,D7)) -> 0 | E8: A
A9: Maximum Architect Rate (MAR) = | C9: =C6*C8 -> 0 | E9: B
A10: 0 | B10: = New Mexico Gross Receipts Tax Rate | C10: =C9*(1+A10) -> 0 | E10: C
A11: Percent of Basic Fee | B11: Design & Construction Phases | C11: Lump Sum (without NMGRT) | E11: D
A12: 0 | B12: Programming Effort = | C12: =IF(C9="Negotiable","Negotiable",C9*A12) -> 0
A13: 0 | B13: Schematic Design Effort = | C13: =IF(C9="Negotiable","Negotiable",C9*A13) -> 0
A14: 0 | B14: Design Development Effort = | C14: =IF(C9="Negotiable","Negotiable",C9*A14) -> 0
A15: 0 | B15: Construction Documents Effort = | C15: =IF(C9="Negotiable","Negotiable",C9*A15) -> 0
A16: 0 | B16: Award of Contract Effort = | C16: =IF(C9="Negotiable","Negotiable",C9*A16) -> 0
A17: 0 | B17: Construction Effort = | C17: =IF(C9="Negotiable","Negotiable",C9*A17) -> 0
A18: 0 | B18: Closeout Effort = | C18: =IF(C9="Negotiable","Negotiable",C9*A18) -> 0
A19: =SUM(A12:A18) -> 0 | B19: =IF(A19=1,"TOTAL =","PHASE ONE TOTAL =") -> PHASE ONE TOTAL = | C19: =IF(A19>1,"ERROR",SUM(C12:C18)) -> 0 | F19: =IF(A19>1,"= Value exceeds MAR value in Cell C9"," ") -> 
A21: Building Types (1.5.18.9 A. NMAC)
A22: A - Specialized projects - Broadcast and telecast facility, concert hall, data processing center, detention facility, emergency operating center, fish hatchery and rearing facility, hospital, laboratory, museum, research facility.
A23: B - Complex projects - Animal control facility, auditorium, church, clinic, convention center, court house, educational building (with special facilities such as trade, vocation, etc.), fitness center, laundry, library, medical center, mortuary, parking structure (enclosed), repair garage, residence (custom), restaurant, swimming pool (enclosed) synagogue, theater, transportation terminal, zoo facility.
A24: C - Average projects - Apartment building, armory, bakery, bank, cafeteria, chapel, community center, dormitory, educational building (without special facilities), fire station, gymnasium, hotel, industrial building, motel, office building, parking structure (open air), police administration building, recreational building, retail store.
A25: D - Simple projects - Airplane hangar, barn, comfort station, garage (without repair work), residence, stadium (open air), swimming pool (open air), warehouse.
A26: General notes (1.5.18.9 B. NMAC): (1) Rates for building types not listed in the building type group schedule should be negotiated from the rates indicated for buildings of similar design complexity. In instances where the owner of user has no similar facility and is not able to offer any guidance or expertise to the building to be constructed, the architect rate shall be negotiated with the architect rate schedule chart, Appendix A, only as a reference, whenever applicable. (2) When a building or project includes several types of uses, the schedule rates apply to such types individually and negotiation is appropriate. (3) Alterations to buildings may involve many unforeseeable conditions that may not easily be included in normal basic services. An alteration is defined as any change, architectural, structural, mechanical, or electrical, made to an existing building, and includes portions of buildings altered as a result of a new wing extension of such building, excluding historical restorations. Negotiation of the architect's rate for alterations in all categories is appropriate. Consideration of whether there are "trade-offs" in the scope of services should be taken. (4) Historical renovation projects as a general rule require services substantially in excess of those cited as basic services. These services can include investigative analysis of existing systems, demolition planning and coordination, historical data collection and other coordination. Other instances may not address serious modification of structural systems, finishes, etc. Negotiation of the architect rates is appropriate for all categories of building types whenever the primary architectural services are for historic building renovation.
A27: (5) Where multi-contract of fast-track construction contracts are deemed to be in the best interest of the state and are required in writing by the state, negotiation of the fee is appropriate. Multi-contract or fast-track projects as a general rule require higher levels of coordination, additional personnel, increased levels of construction observation, and accelerated time schedules, all of which may increase the costs of architectural activities. (6) On projects not requiring full basic services (such as fixtures, equipment, furnishings, interior displays, memorials, reroofing, etc.), when not a part of an overall building, the architect rate shall be negotiated on a cost-based compensation basis by individual project. (7) For projects whose major design elements are repetitive, the architect rates in all categories may be reduced to reflect the repetitive nature of the project. (8) "Residence," as used in building type group D, is defined as a development-type residence, namely, a single- or two-family house. (9) Fees for projects under $150,000 and over $10,000,000 shall be negotiated individually on a cost-based compensation basis; this rate schedule shall not apply.
A28: http://164.64.110.239/nmac/parts/title01/01.005.0018.htm

Sheet TABLE (hidden)
B1: A | C1: B | D1: C | E1: D
A2: 100000 | B2: 0.115 | C2: 0.101 | D2: 0.09 | E2: 0.08
A3: =A2+10000 -> 110000 | B3: =B4+0.0006 -> 0.1144 | C3: =C4+0.0006 -> 0.1004 | D3: =D4+0.0004 -> 0.0896 | E3: =E4+0.0006 -> 0.0794 | G3: 1
A4: =A3+10000 -> 120000 | B4: =B5+0.0006 -> 0.1138 | C4: 0.0998 | D4: =D5+0.0004 -> 0.0892 | E4: 0.0788 | G4: 2
A5: 130000 | B5: =B6+0.0006 -> 0.1132 | C5: 0.0992 | D5: =D6+0.0004 -> 0.0888 | E5: 0.0782 | G5: 3
A6: 140000 | B6: =B7+0.0006 -> 0.1126 | C6: 0.0986 | D6: =D7+0.0004 -> 0.0884 | E6: 0.0776 | G6: 4
A7: 150000 | B7: =B8+0.0006 -> 0.112 | C7: 0.098 | D7: =D8+0.0006 -> 0.088 | E7: 0.077 | G7: 5
A8: 160000 | B8: =B9+0.0006 -> 0.1114 | C8: 0.0974 | D8: 0.0874 | E8: 0.0764 | G8: 6
A9: 170000 | B9: =B10+0.0006 -> 0.1108 | C9: 0.0968 | D9: 0.0868 | E9: 0.0758 | G9: 7
A10: =A9+10000 -> 180000 | B10: =B11+0.0006 -> 0.1102 | C10: 0.0962 | D10: 0.0862 | E10: 0.0752 | G10: 8
A11: 190000 | B11: =B12+0.0006 -> 0.1096 | C11: 0.0956 | D11: 0.0856 | E11: 0.0746 | G11: 10
A12: =A11+10000 -> 200000 | B12: =B13+0.0004 -> 0.109 | C12: =C13+0.0003 -> 0.095 | D12: =D13+0.0003 -> 0.085 | E12: 0.074
A13: =A12+10000 -> 210000 | B13: 0.1086 | C13: =C14+0.0003 -> 0.0947 | D13: =D14+0.0003 -> 0.0847 | E13: 0.0736
A14: =A13+10000 -> 220000 | B14: 0.1082 | C14: =C15+0.0003 -> 0.0944 | D14: 0.0844 | E14: 0.0732
A15: 230000 | B15: 0.1078 | C15: 0.0941 | D15: 0.0841 | E15: 0.0728
A16: 240000 | B16: 0.1074 | C16: 0.0938 | D16: 0.0838 | E16: 0.0724
A17: 250000 | B17: 0.107 | C17: 0.0935 | D17: 0.0835 | E17: 0.072
A18: =A17+10000 -> 260000 | B18: 0.1066 | C18: 0.0932 | D18: 0.0832 | E18: 0.0716
A19: =A18+10000 -> 270000 | B19: 0.1062 | C19: 0.0929 | D19: 0.0829 | E19: 0.0712
A20: 280000 | B20: 0.1058 | C20: 0.0926 | D20: 0.0826 | E20: 0.0708
A21: 290000 | B21: =B22+0.0004 -> 0.1054 | C21: 0.0923 | D21: 0.0823 | E21: =E22+0.0004 -> 0.0704
A22: 300000 | B22: =B23+0.0002 -> 0.105 | C22: 0.092 | D22: 0.082 | E22: 0.07
A23: =A22+10000 -> 310000 | B23: =B24+0.0002 -> 0.1048 | C23: =C24+0.0002 -> 0.0918 | D23: =D24+0.0002 -> 0.0818 | E23: =E24+0.0002 -> 0.0698
A24: =A23+10000 -> 320000 | B24: =B25+0.0002 -> 0.1046 | C24: 0.0916 | D24: 0.0816 | E24: 0.0696
A25: 330000 | B25: 0.1044 | C25: 0.0914 | D25: 0.0814 | E25: 0.0694
A26: 340000 | B26: 0.1042 | C26: 0.0912 | D26: 0.0812 | E26: 0.0692
A27: 350000 | B27: 0.104 | C27: 0.091 | D27: 0.081 | E27: 0.069
A28: =A27+10000 -> 360000 | B28: 0.1038 | C28: 0.0908 | D28: 0.0808 | E28: 0.0688
A29: =A28+10000 -> 370000 | B29: 0.1036 | C29: 0.0906 | D29: 0.0806 | E29: 0.0686
A30: 380000 | B30: 0.1034 | C30: 0.0904 | D30: 0.0804 | E30: 0.0684
A31: 390000 | B31: 0.1032 | C31: 0.0902 | D31: 0.0802 | E31: 0.0682
A32: 400000 | B32: =B33+0.0002 -> 0.103 | C32: 0.09 | D32: 0.08 | E32: 0.068
A33: =A32+10000 -> 410000 | B33: =B34+0.0002 -> 0.1028 | C33: =C34+0.0002 -> 0.0898 | D33: =D34+0.0002 -> 0.0798 | E33: =E34+0.0002 -> 0.0678
A34: =A33+10000 -> 420000 | B34: 0.1026 | C34: 0.0896 | D34: 0.0796 | E34: 0.0676
A35: 430000 | B35: 0.1024 | C35: 0.0894 | D35: 0.0794 | E35: 0.0674
A36: 440000 | B36: 0.1022 | C36: 0.0892 | D36: 0.0792 | E36: 0.0672
A37: 450000 | B37: 0.102 | C37: 0.089 | D37: 0.079 | E37: 0.067
A38: =A37+10000 -> 460000 | B38: 0.1018 | C38: 0.0888 | D38: 0.0788 | E38: 0.0668
A39: =A38+10000 -> 470000 | B39: 0.1016 | C39: 0.0886 | D39: 0.0786 | E39: 0.0666
A40: 480000 | B40: 0.1014 | C40: 0.0884 | D40: 0.0784 | E40: 0.0664
A41: 490000 | B41: 0.1012 | C41: 0.0882 | D41: 0.0782 | E41: 0.0662
A42: 500000 | B42: =B43+0.0001 -> 0.101 | C42: 0.088 | D42: 0.078 | E42: 0.066
A43: =A42+10000 -> 510000 | B43: 0.1009 | C43: 0.0879 | D43: 0.0779 | E43: 0.0659
A44: =A43+10000 -> 520000 | B44: 0.1008 | C44: 0.0878 | D44: 0.0778 | E44: 0.0658
A45: 530000 | B45: 0.1007 | C45: 0.0877 | D45: 0.0777 | E45: 0.0657
A46: 540000 | B46: 0.1006 | C46: 0.0876 | D46: 0.0776 | E46: 0.0656
A47: 550000 | B47: 0.1005 | C47: 0.0875 | D47: 0.0775 | E47: 0.0655
A48: =A47+10000 -> 560000 | B48: 0.1004 | C48: 0.0874 | D48: 0.0774 | E48: 0.0654
A49: =A48+10000 -> 570000 | B49: 0.1003 | C49: 0.0873 | D49: 0.0773 | E49: 0.0653
A50: 580000 | B50: 0.1002 | C50: 0.0872 | D50: 0.0772 | E50: 0.0652
A51: 590000 | B51: =B52+0.0001 -> 0.1001 | C51: =C52+0.0001 -> 0.0871 | D51: =D52+0.0001 -> 0.0771 | E51: =E52+0.0001 -> 0.0651
A52: 600000 | B52: =B53+0.00015 -> 0.1 | C52: =C53+0.0001 -> 0.087 | D52: =D53+0.0001 -> 0.077 | E52: 0.065
A53: =A52+10000 -> 610000 | B53: 0.09985 | C53: =C54+0.0001 -> 0.0869 | D53: 0.0769 | E53: 0.06485
A54: =A53+10000 -> 620000 | B54: 0.0997 | C54: 0.0868 | D54: 0.0768 | E54: 0.0647
A55: 630000 | B55: 0.09955 | C55: 0.0867 | D55: 0.0767 | E55: 0.06455
A56: 640000 | B56: 0.0994 | C56: 0.0866 | D56: 0.0766 | E56: 0.0644
A57: 650000 | B57: 0.09925 | C57: 0.0865 | D57: 0.0765 | E57: 0.06425
A58: =A57+10000 -> 660000 | B58: 0.0991 | C58: 0.0864 | D58: 0.0764 | E58: 0.0641
A59: =A58+10000 -> 670000 | B59: 0.09895 | C59: 0.0863 | D59: 0.0763 | E59: 0.06395
A60: 680000 | B60: 0.0988 | C60: 0.0862 | D60: 0.0762 | E60: 0.0638
A61: 690000 | B61: 0.09865 | C61: 0.0861 | D61: 0.0761 | E61: 0.06365
A62: 700000 | B62: 0.0985 | C62: =C63+0.0001 -> 0.086 | D62: =D63+0.0001 -> 0.076 | E62: 0.0635
A63: =A62+10000 -> 710000 | B63: =B64+0.00015 -> 0.09835 | C63: =C64+0.0001 -> 0.0859 | D63: 0.0759 | E63: 0.06335
A64: =A63+10000 -> 720000 | B64: 0.0982 | C64: 0.0858 | D64: 0.0758 | E64: 0.0632
A65: 730000 | B65: 0.09805 | C65: 0.0857 | D65: 0.0757 | E65: 0.06305
A66: 740000 | B66: 0.0979 | C66: 0.0856 | D66: 0.0756 | E66: 0.0629
A67: 750000 | B67: 0.09775 | C67: 0.0855 | D67: 0.0755 | E67: 0.06275
A68: =A67+10000 -> 760000 | B68: 0.0976 | C68: 0.0854 | D68: 0.0754 | E68: 0.0626
A69: =A68+10000 -> 770000 | B69: 0.09745 | C69: 0.0853 | D69: 0.0753 | E69: 0.06245
A70: 780000 | B70: 0.0973 | C70: 0.0852 | D70: 0.0752 | E70: 0.0623
A71: 790000 | B71: =B72+0.00015 -> 0.09715 | C71: 0.0851 | D71: 0.0751 | E71: =E72+0.00015 -> 0.06215
A72: 800000 | B72: =B73+0.0001 -> 0.097 | C72: 0.085 | D72: 0.075 | E72: 0.062
A73: =A72+10000 -> 810000 | B73: 0.0969 | C73: 0.0849 | D73: 0.0749 | E73: 0.0619
A74: =A73+10000 -> 820000 | B74: 0.0968 | C74: 0.0848 | D74: 0.0748 | E74: 0.0618
A75: 830000 | B75: 0.0967 | C75: 0.0847 | D75: 0.0747 | E75: 0.0617
A76: 840000 | B76: 0.0966 | C76: 0.0846 | D76: 0.0746 | E76: 0.0616
A77: 850000 | B77: 0.0965 | C77: 0.0845 | D77: 0.0745 | E77: 0.0615
A78: =A77+10000 -> 860000 | B78: 0.0964 | C78: 0.0844 | D78: 0.0744 | E78: 0.0614
A79: =A78+10000 -> 870000 | B79: 0.0963 | C79: 0.0843 | D79: 0.0743 | E79: 0.0613
A80: 880000 | B80: 0.0962 | C80: 0.0842 | D80: 0.0742 | E80: 0.0612
A81: 890000 | B81: =B82+0.0001 -> 0.0961 | C81: =C82+0.0001 -> 0.0841 | D81: =D82+0.0001 -> 0.0741 | E81: =E82+0.0001 -> 0.0611
A82: 900000 | B82: =B83+0.0001 -> 0.096 | C82: 0.084 | D82: 0.074 | E82: 0.061
A83: =A82+10000 -> 910000 | B83: 0.0959 | C83: 0.0839 | D83: 0.0739 | E83: 0.0609
A84: =A83+10000 -> 920000 | B84: 0.0958 | C84: 0.0838 | D84: 0.0738 | E84: 0.0608
A85: 930000 | B85: 0.0957 | C85: 0.0837 | D85: 0.0737 | E85: 0.0607
A86: 940000 | B86: 0.0956 | C86: 0.0836 | D86: 0.0736 | E86: 0.0606
A87: 950000 | B87: 0.0955 | C87: 0.0835 | D87: 0.0735 | E87: 0.0605
A88: =A87+10000 -> 960000 | B88: 0.0954 | C88: 0.0834 | D88: 0.0734 | E88: 0.0604
A89: =A88+10000 -> 970000 | B89: 0.0953 | C89: 0.0833 | D89: 0.0733 | E89: 0.0603
A90: 980000 | B90: 0.0952 | C90: 0.0832 | D90: 0.0732 | E90: 0.0602
A91: 990000 | B91: =B92+0.0001 -> 0.0951 | C91: =C92+0.0001 -> 0.0831 | D91: =D92+0.0001 -> 0.0731 | E91: =E92+0.0001 -> 0.0601
A92: 1000000 | B92: =B93+0.0003 -> 0.095 | C92: =C93+0.00025 -> 0.083 | D92: 0.073 | E92: 0.06
A93: =A92+50000 -> 1050000 | B93: 0.0947 | C93: 0.08275 | D93: 0.07275 | E93: 0.0597
A94: 1100000 | B94: 0.0944 | C94: 0.0825 | D94: 0.0725 | E94: 0.0594
A95: 1150000 | B95: 0.0941 | C95: 0.08225 | D95: 0.07225 | E95: 0.0591
A96: 1200000 | B96: 0.0938 | C96: 0.082 | D96: 0.072 | E96: 0.0588
A97: 1250000 | B97: 0.0935 | C97: 0.08175 | D97: 0.07175 | E97: 0.0585
A98: 1300000 | B98: 0.0932 | C98: 0.0815 | D98: 0.0715 | E98: 0.0582
A99: 1350000 | B99: 0.0929 | C99: 0.08125 | D99: 0.07125 | E99: 0.0579
A100: 1400000 | B100: 0.0926 | C100: 0.081 | D100: 0.071 | E100: 0.0576
A101: 1450000 | B101: =B102+0.0003 -> 0.0923 | C101: 0.08075 | D101: 0.07075 | E101: =E102+0.0003 -> 0.0573
A102: 1500000 | B102: =B103+0.0003 -> 0.092 | C102: 0.0805 | D102: 0.0705 | E102: 0.057
A103: 1550000 | B103: 0.0917 | C103: 0.08025 | D103: 0.07025 | E103: 0.0567
A104: 1600000 | B104: 0.0914 | C104: 0.08 | D104: 0.07 | E104: 0.0564
A105: 1650000 | B105: 0.0911 | C105: 0.07975 | D105: 0.06975 | E105: 0.0561
A106: 1700000 | B106: 0.0908 | C106: 0.0795 | D106: 0.0695 | E106: 0.0558
A107: 1750000 | B107: 0.0905 | C107: 0.07925 | D107: 0.06925 | E107: 0.0555
A108: 1800000 | B108: 0.0902 | C108: 0.079 | D108: 0.069 | E108: 0.0552
A109: 1850000 | B109: 0.0899 | C109: 0.07875 | D109: 0.06875 | E109: 0.0549
A110: 1900000 | B110: 0.0896 | C110: 0.0785 | D110: 0.0685 | E110: 0.0546
A111: 1950000 | B111: =B112+0.0003 -> 0.0893 | C111: =C112+0.00025 -> 0.07825 | D111: =D112+0.00025 -> 0.06825 | E111: =E112+0.0003 -> 0.0543
A112: 2000000 | B112: =B113+0.0002 -> 0.089 | C112: 0.078 | D112: 0.068 | E112: 0.054
A113: 2050000 | B113: =B114+0.0002 -> 0.0888 | C113: =C114+0.0002 -> 0.0778 | D113: =D114+0.0002 -> 0.0678 | E113: =E114+0.0002 -> 0.0538
A114: 2100000 | B114: =B115+0.0002 -> 0.0886 | C114: 0.0776 | D114: 0.0676 | E114: 0.0536
A115: 2150000 | B115: 0.0884 | C115: 0.0774 | D115: 0.0674 | E115: 0.0534
A116: 2200000 | B116: 0.0882 | C116: 0.0772 | D116: 0.0672 | E116: 0.0532
A117: 2250000 | B117: 0.088 | C117: 0.077 | D117: 0.067 | E117: 0.053
A118: 2300000 | B118: 0.0878 | C118: 0.0768 | D118: 0.0668 | E118: 0.0528
A119: 2350000 | B119: 0.0876 | C119: 0.0766 | D119: 0.0666 | E119: 0.0526
A120: 2400000 | B120: 0.0874 | C120: 0.0764 | D120: 0.0664 | E120: 0.0524
A121: 2450000 | B121: 0.0872 | C121: 0.0762 | D121: 0.0662 | E121: 0.0522
A122: 2500000 | B122: =B123+0.0002 -> 0.087 | C122: 0.076 | D122: 0.066 | E122: 0.052
A123: 2550000 | B123: 0.0868 | C123: 0.0758 | D123: 0.0658 | E123: 0.0518
A124: 2600000 | B124: 0.0866 | C124: 0.0756 | D124: 0.0656 | E124: 0.0516
A125: 2650000 | B125: 0.0864 | C125: 0.0754 | D125: 0.0654 | E125: 0.0514
A126: 2700000 | B126: 0.0862 | C126: 0.0752 | D126: 0.0652 | E126: 0.0512
A127: 2750000 | B127: 0.086 | C127: 0.075 | D127: 0.065 | E127: 0.051
A128: 2800000 | B128: 0.0858 | C128: 0.0748 | D128: 0.0648 | E128: 0.0508
A129: 2850000 | B129: 0.0856 | C129: 0.0746 | D129: 0.0646 | E129: 0.0506
A130: 2900000 | B130: 0.0854 | C130: 0.0744 | D130: 0.0644 | E130: 0.0504
A131: 2950000 | B131: 0.0852 | C131: 0.0742 | D131: 0.0642 | E131: 0.0502
A132: 3000000 | B132: =B133+0.0001 -> 0.085 | C132: 0.074 | D132: 0.064 | E132: 0.05
A133: 3050000 | B133: =B134+0.0001 -> 0.0849 | C133: =C134+0.0001 -> 0.0739 | D133: =D134+0.0001 -> 0.0639 | E133: =E134+0.0001 -> 0.0499
A134: 3100000 | B134: =B135+0.0001 -> 0.0848 | C134: 0.0738 | D134: 0.0638 | E134: 0.0498
A135: 3150000 | B135: 0.0847 | C135: 0.0737 | D135: 0.0637 | E135: 0.0497
A136: 3200000 | B136: 0.0846 | C136: 0.0736 | D136: 0.0636 | E136: 0.0496
A137: 3250000 | B137: 0.0845 | C137: 0.0735 | D137: 0.0635 | E137: 0.0495
A138: 3300000 | B138: 0.0844 | C138: 0.0734 | D138: 0.0634 | E138: 0.0494
A139: 3350000 | B139: 0.0843 | C139: 0.0733 | D139: 0.0633 | E139: 0.0493
A140: =A139+50000 -> 3400000 | B140: 0.0842 | C140: 0.0732 | D140: 0.0632 | E140: 0.0492
A141: 3450000 | B141: 0.0841 | C141: 0.0731 | D141: 0.0631 | E141: 0.0491
A142: 3500000 | B142: 0.084 | C142: 0.073 | D142: 0.063 | E142: 0.049
A143: 3550000 | B143: =B144+0.0001 -> 0.0839 | C143: 0.0729 | D143: 0.0629 | E143: 0.0489
A144: 3600000 | B144: 0.0838 | C144: 0.0728 | D144: 0.0628 | E144: 0.0488
A145: 3650000 | B145: 0.0837 | C145: 0.0727 | D145: 0.0627 | E145: 0.0487
A146: 3700000 | B146: 0.0836 | C146: 0.0726 | D146: 0.0626 | E146: 0.0486
A147: 3750000 | B147: 0.0835 | C147: 0.0725 | D147: 0.0625 | E147: 0.0485
A148: 3800000 | B148: 0.0834 | C148: 0.0724 | D148: 0.0624 | E148: 0.0484
A149: 3850000 | B149: 0.0833 | C149: 0.0723 | D149: 0.0623 | E149: 0.0483
A150: 3900000 | B150: 0.0832 | C150: 0.0722 | D150: 0.0622 | E150: 0.0482
A151: 3950000 | B151: 0.0831 | C151: 0.0721 | D151: 0.0621 | E151: 0.0481
A152: 4000000 | B152: 0.083 | C152: 0.072 | D152: 0.062 | E152: 0.048
A153: 4050000 | B153: =B154+0.0001 -> 0.0829 | C153: =C154+0.0001 -> 0.0719 | D153: =D154+0.0001 -> 0.0619 | E153: =E154+0.0001 -> 0.0479
A154: 4100000 | B154: =B155+0.0001 -> 0.0828 | C154: 0.0718 | D154: 0.0618 | E154: 0.0478
A155: 4150000 | B155: 0.0827 | C155: 0.0717 | D155: 0.0617 | E155: 0.0477
A156: 4200000 | B156: 0.0826 | C156: 0.0716 | D156: 0.0616 | E156: 0.0476
A157: 4250000 | B157: 0.0825 | C157: 0.0715 | D157: 0.0615 | E157: 0.0475
A158: 4300000 | B158: 0.0824 | C158: 0.0714 | D158: 0.0614 | E158: 0.0474
A159: 4350000 | B159: 0.0823 | C159: 0.0713 | D159: 0.0613 | E159: 0.0473
A160: 4400000 | B160: 0.0822 | C160: 0.0712 | D160: 0.0612 | E160: 0.0472
A161: 4450000 | B161: 0.0821 | C161: 0.0711 | D161: 0.0611 | E161: 0.0471
A162: 4500000 | B162: 0.082 | C162: 0.071 | D162: 0.061 | E162: 0.047
A163: 4550000 | B163: =B164+0.0001 -> 0.0819 | C163: 0.0709 | D163: 0.0609 | E163: 0.0469
A164: 4600000 | B164: 0.0818 | C164: 0.0708 | D164: 0.0608 | E164: 0.0468
A165: 4650000 | B165: 0.0817 | C165: 0.0707 | D165: 0.0607 | E165: 0.0467
A166: 4700000 | B166: 0.0816 | C166: 0.0706 | D166: 0.0606 | E166: 0.0466
A167: 4750000 | B167: 0.0815 | C167: 0.0705 | D167: 0.0605 | E167: 0.0465
A168: 4800000 | B168: 0.0814 | C168: 0.0704 | D168: 0.0604 | E168: 0.0464
A169: 4850000 | B169: 0.0813 | C169: 0.0703 | D169: 0.0603 | E169: 0.0463
A170: 4900000 | B170: 0.0812 | C170: 0.0702 | D170: 0.0602 | E170: 0.0462
A171: 4950000 | B171: 0.0811 | C171: 0.0701 | D171: 0.0601 | E171: 0.0461
A172: 5000000 | B172: 0.081 | C172: =C173+0.00005 -> 0.07 | D172: 0.06 | E172: 0.046
A173: 5050000 | B173: =B174+0.0001 -> 0.0809 | C173: 0.06995 | D173: 0.05995 | E173: =E174+0.0001 -> 0.0459
A174: 5100000 | B174: =B175+0.0001 -> 0.0808 | C174: 0.0699 | D174: 0.0599 | E174: 0.0458
A175: 5150000 | B175: 0.0807 | C175: 0.06985 | D175: 0.05985 | E175: 0.0457
A176: 5200000 | B176: 0.0806 | C176: 0.0698 | D176: 0.0598 | E176: 0.0456
A177: 5250000 | B177: 0.0805 | C177: 0.06975 | D177: 0.05975 | E177: 0.0455
A178: 5300000 | B178: 0.0804 | C178: 0.0697 | D178: 0.0597 | E178: 0.0454
A179: 5350000 | B179: 0.0803 | C179: 0.06965 | D179: 0.05965 | E179: 0.0453
A180: 5400000 | B180: 0.0802 | C180: 0.0696 | D180: 0.0596 | E180: 0.0452
A181: 5450000 | B181: 0.0801 | C181: 0.06955 | D181: 0.05955 | E181: 0.0451
A182: 5500000 | B182: =B183+0.0001 -> 0.08 | C182: 0.0695 | D182: 0.0595 | E182: 0.045
A183: 5550000 | B183: 0.0799 | C183: 0.06945 | D183: 0.05945 | E183: 0.0449
A184: 5600000 | B184: 0.0798 | C184: 0.0694 | D184: 0.0594 | E184: 0.0448
A185: 5650000 | B185: 0.0797 | C185: 0.06935 | D185: 0.05935 | E185: 0.0447
A186: 5700000 | B186: 0.0796 | C186: 0.0693 | D186: 0.0593 | E186: 0.0446
A187: 5750000 | B187: 0.0795 | C187: 0.06925 | D187: 0.05925 | E187: 0.0445
A188: 5800000 | B188: 0.0794 | C188: 0.0692 | D188: 0.0592 | E188: 0.0444
A189: 5850000 | B189: 0.0793 | C189: 0.06915 | D189: 0.05915 | E189: 0.0443
A190: 5900000 | B190: 0.0792 | C190: 0.0691 | D190: 0.0591 | E190: 0.0442
A191: 5950000 | B191: 0.0791 | C191: 0.06905 | D191: 0.05905 | E191: 0.0441
A192: 6000000 | B192: =B193+0.00005 -> 0.079 | C192: 0.069 | D192: 0.059 | E192: 0.044
A193: 6050000 | B193: =B194+0.00005 -> 0.07895 | C193: 0.06895 | D193: 0.05895 | E193: 0.04395
A194: 6100000 | B194: 0.0789 | C194: 0.0689 | D194: 0.0589 | E194: 0.0439
A195: 6150000 | B195: 0.07885 | C195: 0.06885 | D195: 0.05885 | E195: 0.04385
A196: 6200000 | B196: 0.0788 | C196: 0.0688 | D196: 0.0588 | E196: 0.0438
A197: 6250000 | B197: 0.07875 | C197: 0.06875 | D197: 0.05875 | E197: 0.04375
A198: 6300000 | B198: 0.0787 | C198: 0.0687 | D198: 0.0587 | E198: 0.0437
A199: 6350000 | B199: 0.07865 | C199: 0.06865 | D199: 0.05865 | E199: 0.04365
A200: 6400000 | B200: 0.0786 | C200: 0.0686 | D200: 0.0586 | E200: 0.0436
... 609 more rows

Sheet Phase 2
A1: ='Phase 1'!A1:C1 -> State of New Mexico ARCHITECT RATE SCHEDULE CALCULATION SHEET
A2: 1.5.18 NMAC | C2: ='Phase 1'!C2 -> Created 6/12/2017
A3: Project: | B3: ='Phase 1'!B3 -> 
A4: Location: | B4: ='Phase 1'!B4 -> 
A5: Date: | B5: =TODAY() -> 2017-06-12
A6: Maximum Allowable Construction Cost (MACC) = | C6: ='Phase 1'!C6 -> 0
A7: Building Type Group (A, B, C, D) = | C7: ='Phase 1'!C7 -> Select | D7: =IF(C7=" ",0,IF(C7="A",2,IF(C7="b",3,IF(C7="c",4,IF(C7="d",5,0))))) -> 0
A8: Basic Services Fee as a Percentage of MACC = | C8: ='Phase 1'!C8 -> 0
A9: Maximum Architect Rate (MAR) = | C9: ='Phase 1'!C9 -> 0
A10: 0 | B10: = New Mexico Gross Receipts Tax Rate | C10: =C9*(1+A10) -> 0
A11: Percent of Basic Fee | B11: Design & Construction Phases | C11: Lump Sum (without NMGRT)
A12: N/A | B12: ='Phase 1'!B12 -> Programming Effort = | C12: =IF('Phase 1'!A$19=1,"N/A",IF(A12="N/A","Previous Phase",IF(A12>0,C$9*A12,0))) -> Previous Phase
A13: =IF('Phase 1'!A$19=1,"N/A",IF('Phase 1'!A13>0,"N/A",0)) -> 0 | B13: ='Phase 1'!B13 -> Schematic Design Effort = | C13: =IF('Phase 1'!A$19=1,"N/A",IF(A13="N/A","Previous Phase",IF(A13>0,C$9*A13,0))) -> 0
A14: =IF('Phase 1'!A$19=1,"N/A",IF('Phase 1'!A14>0,"N/A",0)) -> 0 | B14: ='Phase 1'!B14 -> Design Development Effort = | C14: =IF('Phase 1'!A$19=1,"N/A",IF(A14="N/A","Previous Phase",IF(A14>0,C$9*A14,0))) -> 0
A15: =IF('Phase 1'!A$19=1,"N/A",IF('Phase 1'!A15>0,"N/A",0)) -> 0 | B15: ='Phase 1'!B15 -> Construction Documents Effort = | C15: =IF('Phase 1'!A$19=1,"N/A",IF(A15="N/A","Previous Phase",IF(A15>0,C$9*A15,0))) -> 0
A16: =IF('Phase 1'!A$19=1,"N/A",IF('Phase 1'!A16>0,"N/A",0)) -> 0 | B16: ='Phase 1'!B16 -> Award of Contract Effort = | C16: =IF('Phase 1'!A$19=1,"N/A",IF(A16="N/A","Previous Phase",IF(A16>0,C$9*A16,0))) -> 0
A17: =IF('Phase 1'!A$19=1,"N/A",IF('Phase 1'!A17>0,"N/A",0)) -> 0 | B17: ='Phase 1'!B17 -> Construction Effort = | C17: =IF('Phase 1'!A$19=1,"N/A",IF(A17="N/A","Previous Phase",IF(A17>0,C$9*A17,0))) -> 0
A18: =IF('Phase 1'!A$19=1,"N/A",IF('Phase 1'!A18>0,"N/A",0)) -> 0 | B18: ='Phase 1'!B18 -> Closeout Effort = | C18: =IF('Phase 1'!A$19=1,"N/A",IF(A18="N/A","Previous Phase",IF(A18>0,C$9*A18,0))) -> 0
A19: =SUM(A12:A18) -> 0 | B19: PHASE TWO TOTAL = | C19: =IF(A19>1,"ERROR",SUM(C12:C18)) -> 0 | E19: =IF(A19>1,"= Value exceeds MAR value in Cell C9"," ") -> 
A20: ='Phase 1'!A19 -> 0 | B20: PHASE ONE TOTAL = | C20: ='Phase 1'!C19 -> 0
A21: =A19+A20 -> 0 | B21: =IF(A18=0,"RUNNING TOTAL =","TOTAL FOR PHASES ONE & TWO =") -> RUNNING TOTAL = | C21: =IF(A21>1,"ERROR",+C19+C20) -> 0 | E21: =IF(A21>1,"= Value exceeds MAR value in Cell C9"," ") -> 
A22: =IF('Phase 1'!A$19=1,"N/A",IF('Phase 1'!A22>0,"N/A",0)) -> N/A | B22: ='Phase 1'!B22 -> 0
A23: Building Types (1.5.18.9 A. NMAC)
A24: A - Specialized projects - Broadcast and telecast facility, concert hall, data processing center, detention facility, emergency operating center, fish hatchery and rearing facility, hospital, laboratory, museum, research facility.
A25: B - Complex projects - Animal control facility, auditorium, church, clinic, convention center, court house, educational building (with special facilities such as trade, vocation, etc.), fitness center, laundry, library, medical center, mortuary, parking structure (enclosed), repair garage, residence (custom), restaurant, swimming pool (enclosed) synagogue, theater, transportation terminal, zoo facility.
A26: C - Average projects - Apartment building, armory, bakery, bank, cafeteria, chapel, community center, dormitory, educational building (without special facilities), fire station, gymnasium, hotel, industrial building, motel, office building, parking structure (open air), police administration building, recreational building, retail store.
A27: D - Simple projects - Airplane hangar, barn, comfort station, garage (without repair work), residence, stadium (open air), swimming pool (open air), warehouse.
A28: General notes (1.5.18.9 B. NMAC): (1) Rates for building types not listed in the building type group schedule should be negotiated from the rates indicated for buildings of similar design complexity. In instances where the owner of user has no similar facility and is not able to offer any guidance or expertise to the building to be constructed, the architect rate shall be negotiated with the architect rate schedule chart, Appendix A, only as a reference, whenever applicable. (2) When a building or project includes several types of uses, the schedule rates apply to such types individually and negotiation is appropriate. (3) Alterations to buildings may involve many unforeseeable conditions that may not easily be included in normal basic services. An alteration is defined as any change, architectural, structural, mechanical, or electrical, made to an existing building, and includes portions of buildings altered as a result of a new wing extension of such building, excluding historical restorations. Negotiation of the architect's rate for alterations in all categories is appropriate. Consideration of whether there are "trade-offs" in the scope of services should be taken. (4) Historical renovation projects as a general rule require services substantially in excess of those cited as basic services. These services can include investigative analysis of existing systems, demolition planning and coordination, historical data collection and other coordination. Other instances may not address serious modification of structural systems, finishes, etc. Negotiation of the architect rates is appropriate for all categories of building types whenever the primary architectural services are for historic building renovation.
A29: (5) Where multi-contract of fast-track construction contracts are deemed to be in the best interest of the state and are required in writing by the state, negotiation of the fee is appropriate. Multi-contract or fast-track projects as a general rule require higher levels of coordination, additional personnel, increased levels of construction observation, and accelerated time schedules, all of which may increase the costs of architectural activities. (6) On projects not requiring full basic services (such as fixtures, equipment, furnishings, interior displays, memorials, reroofing, etc.), when not a part of an overall building, the architect rate shall be negotiated on a cost-based compensation basis by individual project. (7) For projects whose major design elements are repetitive, the architect rates in all categories may be reduced to reflect the repetitive nature of the project. (8) "Residence," as used in building type group D, is defined as a development-type residence, namely, a single- or two-family house. (9) Fees for projects under $150,000 and over $10,000,000 shall be negotiated individually on a cost-based compensation basis; this rate schedule shall not apply.
A30: http://164.64.110.239/nmac/parts/title01/01.005.0018.htm

Sheet Phase 3
A1: ='Phase 1'!A1:C1 -> State of New Mexico ARCHITECT RATE SCHEDULE CALCULATION SHEET
A2: 1.5.18 NMAC | C2: ='Phase 1'!C2 -> Created 6/12/2017
A3: Project: | B3: ='Phase 1'!B3 -> 
A4: Location: | B4: ='Phase 1'!B4 -> 
A5: Date: | B5: =TODAY() -> 2017-06-12
A6: Maximum Allowable Construction Cost (MACC) = | C6: ='Phase 1'!C6 -> 0
A7: Building Type Group (A, B, C, D) = | C7: ='Phase 1'!C7 -> Select | D7: =IF(C7=" ",0,IF(C7="A",2,IF(C7="b",3,IF(C7="c",4,IF(C7="d",5,0))))) -> 0
A8: Basic Services Fee as a Percentage of MACC = | C8: ='Phase 1'!C8 -> 0
A9: Maximum Architect Rate (MAR) = | C9: =IF(C8="Negotiable","Negotiable",C6*C8) -> 0
A10: 0 | B10: = New Mexico Gross Receipts Tax Rate | C10: =IF(C8="Negotiable","N/A",C9*(1+A10)) -> 0
A11: Percent of Basic Fee | B11: Design & Construction Phases | C11: Lump Sum (without NMGRT)
A12: N/A | B12: ='Phase 1'!B12 -> Programming Effort = | C12: =IF('Phase 1'!A$19=1,"N/A",IF('Phase 2'!A$21=1,"N/A",IF(A12="N/A","Previous Phase",IF(A12>0,C$9*A12,0)))) -> Previous Phase
A13: N/A | B13: ='Phase 1'!B13 -> Schematic Design Effort = | C13: =IF('Phase 1'!A$19=1,"N/A",IF('Phase 2'!A$21=1,"N/A",IF(A13="N/A","Previous Phase",IF(A13>0,C$9*A13,0)))) -> Previous Phase
A14: =IF('Phase 1'!A$19=1,"N/A",IF('Phase 2'!A$19=1,"N/A",IF('Phase 2'!A14>0,"N/A",0))) -> 0 | B14: ='Phase 1'!B14 -> Design Development Effort = | C14: =IF('Phase 1'!A$19=1,"N/A",IF('Phase 2'!A$21=1,"N/A",IF(A14="N/A","Previous Phase",IF(A14>0,C$9*A14,0)))) -> 0
A15: =IF('Phase 1'!A$19=1,"N/A",IF('Phase 2'!A$19=1,"N/A",IF('Phase 2'!A15>0,"N/A",0))) -> 0 | B15: ='Phase 1'!B15 -> Construction Documents Effort = | C15: =IF('Phase 1'!A$19=1,"N/A",IF('Phase 2'!A$21=1,"N/A",IF(A15="N/A","Previous Phase",IF(A15>0,C$9*A15,0)))) -> 0
A16: =IF('Phase 1'!A$19=1,"N/A",IF('Phase 2'!A$19=1,"N/A",IF('Phase 2'!A16>0,"N/A",0))) -> 0 | B16: ='Phase 1'!B16 -> Award of Contract Effort = | C16: =IF('Phase 1'!A$19=1,"N/A",IF('Phase 2'!A$21=1,"N/A",IF(A16="N/A","Previous Phase",IF(A16>0,C$9*A16,0)))) -> 0
A17: =IF('Phase 1'!A$19=1,"N/A",IF('Phase 2'!A$19=1,"N/A",IF('Phase 2'!A17>0,"N/A",0))) -> 0 | B17: ='Phase 1'!B17 -> Construction Effort = | C17: =IF('Phase 1'!A$19=1,"N/A",IF('Phase 2'!A$21=1,"N/A",IF(A17="N/A","Previous Phase",IF(A17>0,C$9*A17,0)))) -> 0
A18: =IF('Phase 1'!A$19=1,"N/A",IF('Phase 2'!A$19=1,"N/A",IF('Phase 2'!A18>0,"N/A",0))) -> 0 | B18: ='Phase 1'!B18 -> Closeout Effort = | C18: =IF('Phase 1'!A$19=1,"N/A",IF('Phase 2'!A$21=1,"N/A",IF(A18="N/A","Previous Phase",IF(A18>0,C$9*A18,0)))) -> 0
A19: =SUM(A12:A18) -> 0 | B19: PHASE THREE TOTAL = | C19: =IF(A19>1,"ERROR",SUM(C12:C18)) -> 0 | E19: =IF(A19>1,"= Value exceeds MAR value in Cell C9"," ") -> 
A20: ='Phase 2'!A21 -> 0 | B20: PHASE ONE & TWO TOTAL = | C20: ='Phase 2'!C21 -> 0
A21: =A19+A20 -> 0 | B21: TOTAL FOR ALL PHASES = | C21: =IF(A21>1,"ERROR",+C19+C20) -> 0 | E21: =IF(A21>1,"= Value exceeds MAR value in Cell C9"," ") -> 
A22: =IF('Phase 1'!A$19=1,"N/A",IF('Phase 2'!A$19=1,"N/A",IF('Phase 2'!A22>0,"N/A",0))) -> N/A | B22: ='Phase 1'!B22 -> 0
A23: Building Types (1.5.18.9 A. NMAC)
A24: A - Specialized projects - Broadcast and telecast facility, concert hall, data processing center, detention facility, emergency operating center, fish hatchery and rearing facility, hospital, laboratory, museum, research facility.
A25: B - Complex projects - Animal control facility, auditorium, church, clinic, convention center, court house, educational building (with special facilities such as trade, vocation, etc.), fitness center, laundry, library, medical center, mortuary, parking structure (enclosed), repair garage, residence (custom), restaurant, swimming pool (enclosed) synagogue, theater, transportation terminal, zoo facility.
A26: C - Average projects - Apartment building, armory, bakery, bank, cafeteria, chapel, community center, dormitory, educational building (without special facilities), fire station, gymnasium, hotel, industrial building, motel, office building, parking structure (open air), police administration building, recreational building, retail store.
A27: D - Simple projects - Airplane hangar, barn, comfort station, garage (without repair work), residence, stadium (open air), swimming pool (open air), warehouse.
A28: General notes (1.5.18.9 B. NMAC): (1) Rates for building types not listed in the building type group schedule should be negotiated from the rates indicated for buildings of similar design complexity. In instances where the owner of user has no similar facility and is not able to offer any guidance or expertise to the building to be constructed, the architect rate shall be negotiated with the architect rate schedule chart, Appendix A, only as a reference, whenever applicable. (2) When a building or project includes several types of uses, the schedule rates apply to such types individually and negotiation is appropriate. (3) Alterations to buildings may involve many unforeseeable conditions that may not easily be included in normal basic services. An alteration is defined as any change, architectural, structural, mechanical, or electrical, made to an existing building, and includes portions of buildings altered as a result of a new wing extension of such building, excluding historical restorations. Negotiation of the architect's rate for alterations in all categories is appropriate. Consideration of whether there are "trade-offs" in the scope of services should be taken. (4) Historical renovation projects as a general rule require services substantially in excess of those cited as basic services. These services can include investigative analysis of existing systems, demolition planning and coordination, historical data collection and other coordination. Other instances may not address serious modification of structural systems, finishes, etc. Negotiation of the architect rates is appropriate for all categories of building types whenever the primary architectural services are for historic building renovation.
A29: (5) Where multi-contract of fast-track construction contracts are deemed to be in the best interest of the state and are required in writing by the state, negotiation of the fee is appropriate. Multi-contract or fast-track projects as a general rule require higher levels of coordination, additional personnel, increased levels of construction observation, and accelerated time schedules, all of which may increase the costs of architectural activities. (6) On projects not requiring full basic services (such as fixtures, equipment, furnishings, interior displays, memorials, reroofing, etc.), when not a part of an overall building, the architect rate shall be negotiated on a cost-based compensation basis by individual project. (7) For projects whose major design elements are repetitive, the architect rates in all categories may be reduced to reflect the repetitive nature of the project. (8) "Residence," as used in building type group D, is defined as a development-type residence, namely, a single- or two-family house. (9) Fees for projects under $150,000 and over $10,000,000 shall be negotiated individually on a cost-based compensation basis; this rate schedule shall not apply.
A30: http://164.64.110.239/nmac/parts/title01/01.005.0018.htm
